{"text_format":"3","workbook":"xlsx","n_sheets":3,"sheets":["เริ่ม","งบประมาณรายเดือนระดับวิทยาลัย","chart_calcs"],"not_rendered":{"charts":4,"defined_names":19},"read":"whole","date_system":"1900"}

{"sheet":"เริ่ม","index":0,"n_rows":7,"n_cols":2,"rows_kept":7}
[null,"เกี่ยวกับเทมเพลตนี้"]
[null,"ใช้เวิร์กชีตงบประมาณรายเดือนระดับวิทยาลัยเพื่อติดตามรายรับ รายจ่าย และกระแสเงินสด"]
[null,"ใส่รายรับและรายจ่ายรายเดือนเพื่อคำนวณรายรับและรายจ่ายทั้งหมด"]
[null,"กระแสเงินสดจะคำนวณโดยอัตโนมัติ และแผนภูมิกระแสเงินสดจะอัปเดตให้คุณ"]
[null,"เลือกแถบเลื่อนเพื่อดูแผนภูมิรายรับ รายจ่าย และกระแสเงินสดสำหรับเดือนและปี"]
[null,"หมายเหตุ: "]
[null,"คำแนะนำเพิ่มเติมจะอยู่ในคอลัมน์ A ในเวิร์กชีต ข้อความนี้ได้ถูกซ่อนไว้โดยเจตนา เมื่อต้องการเอาข้อความออก ให้เลือกคอลัมน์ A แล้วเลือก ลบ เมื่อต้องการยกเลิกการซ่อนข้อความ ให้เลือกคอลัมน์ A แล้วเปลี่ยนสีฟอนต์"]

{"sheet":"งบประมาณรายเดือนระดับวิทยาลัย","index":1,"n_rows":72,"n_cols":16,"rows_kept":72,"merged":[[5,1,14,3],[5,4,14,11],[5,12,13,15],[15,1,19,15],[20,1,21,15]]}
["สร้างงบประมาณรายเดือนระดับวิทยาลัยในเวิร์กชีตนี้ ชื่อของเวิร์กชีตนี้จะอยู่ในเซลล์ด้านขวาและเซลล์ B1 คำแนะนำที่เป็นประโยชน์เกี่ยวกับวิธีใช้เวิร์กชีตนี้อยู่ในเซลล์ในคอลัมน์นี้ คำแนะนำถัดไปอยู่ในเซลล์ A4","งบประมาณรายเดือนระดับวิทยาลัย"]
[]
[]
["ป้ายกำกับรายรับอยู่ในเซลล์ด้านขวา ป้ายกำกับรายจ่ายอยู่ในเซลล์ E4 และป้ายกำกับกระแสเงินสดอยู่ใน M4",{"$f":"chart_calcs!$D$6","v":"รายรับในเดือนปี:"},null,null,{"$f":"chart_calcs!$D$7","v":"รายจ่ายในเดือนปี:"},{"$nulls":7},{"$f":"chart_calcs!$D$8","v":"กระแสเงินสดของเดือนปี:"}]
["รายรับจะอัปเดตโดยอัตโนมัติในเซลล์ด้านขวา รายจ่ายในเซลล์ E5 และกระแสเงินสดในเซลล์ M5",{"$f":"\" \"&chart_calcs!$F$6","v":{"$error":"#VALUE!"}},null,null,{"$f":"\" \"&chart_calcs!$F$7","v":{"$error":"#VALUE!"}},{"$nulls":7},{"$f":"\" \"&chart_calcs!$F$8","v":" ฿169"}]
["แผนภูมิโดนัทจะแสดงสรุปรายรับในเซลล์ด้านขวา สรุปรายจ่ายในเซลล์ E6 และแผนภูมิแท่งที่แสดงกระแสเงินสดบวกและลบในเซลล์ M6 จะอัปเดตโดยอัตโนมัติ คำแนะนำถัดไปอยู่ในเซลล์ A17","แผนภูมิโดนัทที่แสดงสรุปรายได้ของเดือนหรือปีที่เลือกจะอยู่ในเซลล์นี้",null,null,"แผนภูมิโดนัทที่แสดงสรุปรายจ่ายของเดือนหรือปีที่เลือกอยู่ในเซลล์นี้",{"$nulls":7},"แผนภูมิแท่งที่แสดงค่าบวกและค่าลบของกระแสเงินสดของเดือนหรือปีที่เลือกอยู่ในเซลล์นี้"]
{"$rows_empty":9}
[null,"แผนภูมิเส้นที่แสดงกระแสเงินสดของเดือนหรือปีที่เลือกอยู่ในเซลล์นี้"]
["แผนภูมิเส้นกระแสเงินสดอยู่ในเซลล์ด้านขวา คำแนะนำถัดไปอยู่ในเซลล์ A21"]
[]
[]
[]
["เลือกแถบเลื่อนทางขวาเพื่อดูข้อมูลและแผนภูมิรายรับ รายจ่าย และกระแสเงินสดรายเดือนหรือรายปี คำแนะนำถัดไปอยู่ในเซลล์ A25","แถบเลื่อนอยู่ในเซลล์นี้"]
[]
[]
[]
["เลือกเดือนในเซลล์ด้านขวา กด ALT+ลูกศรลง เพื่อดูตัวเลือก จากนั้นกดลูกศรลงกับ ENTER เพื่อเลือก","ม.ค."]
["ช่วงเวลาที่เลือกจะอัปเดตโดยอัตโนมัติในเซลล์ P26",{"$nulls":14},{"$f":"SelectedPeriod","v":{"$error":"#VALUE!"}}]
["ป้ายกำกับอยู่ในแถวนี้ ป้ายกำกับเงินสดหลังหักรายจ่ายรายเดือนอยู่ในเซลล์ด้านขวา เดือนในเซลล์ C27 ถึง N27 ปีใน O27 และเปอร์เซ็นต์ที่เพิ่มขึ้นใน P27","เงินสดหลังหักรายจ่ายรายเดือน",{"$f":"FirstMonth","v":{"$error":"#VALUE!"}},{"$f":"NextMonth","v":{"$error":"#VALUE!"}},{"$error":"#VALUE!"},{"$error":"#VALUE!"},{"$error":"#VALUE!"},{"$error":"#VALUE!"},{"$error":"#VALUE!"},{"$error":"#VALUE!"},{"$error":"#VALUE!"},{"$error":"#VALUE!"},{"$error":"#VALUE!"},{"$error":"#VALUE!"},"ปี  ","% รายรับ "]
["ป้ายกำกับกระแสเงินสดอยู่ในเซลล์ด้านขวา กระแสเงินสดสำหรับแต่ละเดือนจะคำนวณโดยอัตโนมัติในเซลล์ C28 ถึง N28 จำนวนเงินรายปีใน O28 และเปอร์เซ็นต์ที่เพิ่มขึ้นใน P28 เส้นแบบประกายไฟจะอัปเดตโดยอัตโนมัติในเซลล์ Q28","กระแสเงินสด",{"$f":"C37-C72","v":169},69,192,199,204,{"v":-771,"d":"-771 "},124,154,{"v":-721,"d":"-721 "},109,34,{"v":-61,"d":"-61 "},{"$f":"SUM(C28:N28)","v":{"v":-299,"d":"-299 "}},{"$f":"INDEX($C28:$O28,,SelectedPeriodColumn)/INDEX($C$37:$O$37,,SelectedPeriodColumn)","v":{"$error":"#VALUE!"}}]
["ป้ายกำกับกระแสเงินสดสะสมอยู่ในเซลล์ด้านขวา กระแสเงินสดสะสมสำหรับแต่ละเดือนจะคำนวณโดยอัตโนมัติในเซลล์ C29 ถึง N29 จำนวนเงินรายปีใน O29 และเปอร์เซ็นต์ที่เพิ่มขึ้นใน P29 เส้นแบบประกายไฟจะอัปเดตโดยอัตโนมัติในเซลล์ Q29 คำแนะนำถัดไปอยู่ในเซลล์ A31","กระแสเงินสดสะสม",{"$f":"SUM($C$28:C$28)","v":169},{"$f":"SUM($C$28:D$28)","v":238},{"$f":"SUM($C$28:E$28)","v":430},{"$f":"SUM($C$28:F$28)","v":629},{"$f":"SUM($C$28:G$28)","v":833},{"$f":"SUM($C$28:H$28)","v":62},{"$f":"SUM($C$28:I$28)","v":186},{"$f":"SUM($C$28:J$28)","v":340},{"$f":"SUM($C$28:K$28)","v":{"v":-381,"d":"-381 "}},{"$f":"SUM($C$28:L$28)","v":{"v":-272,"d":"-272 "}},{"$f":"SUM($C$28:M$28)","v":{"v":-238,"d":"-238 "}},{"$f":"SUM($C$28:N$28)","v":{"v":-299,"d":"-299 "}}]
[]
["ป้ายกำกับรายรับรายเดือนอยู่ในเซลล์ด้านขวา เดือนในเซลล์ C31 ถึง N31 ปีใน O31 และป้ายกำกับเปอร์เซ็นต์ที่เพิ่มขึ้นใน P31 ใส่รายการรายรับรายเดือนในเซลล์ B32 ถึง B36 และจำนวนเงินรายเดือนในเซลล์ C32 ถึง N36 รายรับรายปีจะคำนวณโดยอัตโนมัติในเซลล์ O32 ถึง O36 และเปอร์เซ็นต์ที่เพิ่มขึ้นในเซลล์ P32 ถึง P36 คำแนะนำถัดไปอยู่ในเซลล์ A37","รายรับรายเดือน",{"$f":"FirstMonth","v":{"$error":"#VALUE!"}},{"$f":"NextMonth","v":{"$error":"#VALUE!"}},{"$error":"#VALUE!"},{"$error":"#VALUE!"},{"$error":"#VALUE!"},{"$error":"#VALUE!"},{"$error":"#VALUE!"},{"$error":"#VALUE!"},{"$error":"#VALUE!"},{"$error":"#VALUE!"},{"$error":"#VALUE!"},{"$error":"#VALUE!"},"ปี  ","% รายรับ "]
[null,"เงินช่วยเหลือ (เงินทุน ทุนการศึกษา เงินกู้) ที่ชำระให้กับคุณ",0,0,750,750,750,750,750,750,750,750,750,750,{"$f":"SUM(C32:N32)","v":{"v":7500,"d":"7,500"}},{"$f":"INDEX($C32:$O32,,SelectedPeriodColumn)/INDEX($C$37:$O$37,,SelectedPeriodColumn)","v":{"$error":"#VALUE!"}}]
[null,"ค่าจ้างหลังหักภาษี",450,450,450,450,450,450,450,450,550,350,350,350,{"v":5200,"d":"5,200"},{"$f":"INDEX($C33:$O33,,SelectedPeriodColumn)/INDEX($C$37:$O$37,,SelectedPeriodColumn)","v":{"$error":"#VALUE!"}}]
[null,"เงินช่วยเหลือจากครอบครัว",200,200,{"v":1000,"d":"1,000"},350,350,350,350,350,350,350,350,350,{"v":4550,"d":"4,550"},{"$f":"INDEX($C34:$O34,,SelectedPeriodColumn)/INDEX($C$37:$O$37,,SelectedPeriodColumn)","v":{"$error":"#VALUE!"}}]
[null,"ถอนจากเงินออม",500,350,150,0,0,0,0,0,0,0,0,0,{"v":1000,"d":"1,000"},{"$f":"INDEX($C35:$O35,,SelectedPeriodColumn)/INDEX($C$37:$O$37,,SelectedPeriodColumn)","v":{"$error":"#VALUE!"}}]
[null,"อื่นๆ (เงินสงเคราะห์บุตร สาธารณูปการ ของขวัญ เป็นต้น)",75,75,75,75,75,75,75,75,75,75,75,75,900,{"$f":"INDEX($C36:$O36,,SelectedPeriodColumn)/INDEX($C$37:$O$37,,SelectedPeriodColumn)","v":{"$error":"#VALUE!"}}]
["ป้ายกำกับรายรับทั้งหมดอยู่ในเซลล์ทางด้านขวา รายรับทั้งหมดของแต่ละเดือนจะคำนวณโดยอัตโนมัติในเซลล์ C37 ถึง N37 รายรับรายปีใน O37 และเปอร์เซ็นต์ที่เพิ่มขึ้นใน P37 เส้นแบบประกายไฟจะอัปเดตโดยอัตโนมัติในเซลล์ Q37 คำแนะนำถัดไปอยู่ในเซลล์ A39","รายรับทั้งหมด",{"$f":"SUM(C32:C36)","v":{"v":1225,"d":"1,225"}},{"v":1075,"d":"1,075"},{"v":2425,"d":"2,425"},{"v":1625,"d":"1,625"},{"v":1625,"d":"1,625"},{"v":1625,"d":"1,625"},{"v":1625,"d":"1,625"},{"v":1625,"d":"1,625"},{"v":1725,"d":"1,725"},{"v":1525,"d":"1,525"},{"v":1525,"d":"1,525"},{"v":1525,"d":"1,525"},{"v":19150,"d":"19,150"},{"$f":"INDEX($C37:$O37,,SelectedPeriodColumn)/INDEX($C$37:$O$37,,SelectedPeriodColumn)","v":{"$error":"#VALUE!"}}]
[]
["ป้ายกำกับรายจ่ายรายเดือนอยู่ในเซลล์ด้านขวา เดือนในเซลล์ C39 ถึง N39 ปีใน O39 และป้ายกำกับเปอร์เซ็นต์ที่เพิ่มขึ้นใน P39","รายจ่ายรายเดือน",{"$f":"FirstMonth","v":{"$error":"#VALUE!"}},{"$f":"NextMonth","v":{"$error":"#VALUE!"}},{"$error":"#VALUE!"},{"$error":"#VALUE!"},{"$error":"#VALUE!"},{"$error":"#VALUE!"},{"$error":"#VALUE!"},{"$error":"#VALUE!"},{"$error":"#VALUE!"},{"$error":"#VALUE!"},{"$error":"#VALUE!"},{"$error":"#VALUE!"},"ปี  ","% รายรับ "]
["ป้อนหรือปรับเปลี่ยนรายการรายจ่ายในเซลล์ด้านขวา และจำนวนเงินรายเดือนในเซลล์ C40 ถึง N43 จำนวนเงินรายปีจะคำนวณโดยอัตโนมัติในเซลล์ O40 ถึง O43 และเปอร์เซ็นต์ที่เพิ่มขึ้นในเซลล์ P40 ถึง P43 เส้นแบบประกายไฟจะอัปเดตโดยอัตโนมัติในเซลล์ Q40 คำแนะนำถัดไปอยู่ในเซลล์ A45","ที่พักและอาหาร",{"$f":"SUM(C41:C43)","v":565},565,565,565,565,565,565,565,565,565,565,565,{"$f":"SUM(C40:N40)","v":{"v":6780,"d":"6,780"}},{"$f":"INDEX($C40:$O40,,SelectedPeriodColumn)/INDEX($C$72:$O$72,,SelectedPeriodColumn)","v":{"$error":"#VALUE!"}}]
[null,null,315,315,315,315,315,315,315,315,315,315,315,315,{"$f":"SUM(C41:N41)","v":{"v":3780,"d":"3,780"}},{"$f":"INDEX($C41:$O41,,SelectedPeriodColumn)/INDEX($C$72:$O$72,,SelectedPeriodColumn)","v":{"$error":"#VALUE!"}}]
[null,null,200,200,200,200,200,200,200,200,200,200,200,200,{"$f":"SUM(C42:N42)","v":{"v":2400,"d":"2,400"}},{"$f":"INDEX($C42:$O42,,SelectedPeriodColumn)/INDEX($C$72:$O$72,,SelectedPeriodColumn)","v":{"$error":"#VALUE!"}}]
[null,null,50,50,50,50,50,50,50,50,50,50,50,50,{"$f":"SUM(C43:N43)","v":600},{"$f":"INDEX($C43:$O43,,SelectedPeriodColumn)/INDEX($C$72:$O$72,,SelectedPeriodColumn)","v":{"$error":"#VALUE!"}}]
[]
["ป้อนหรือปรับเปลี่ยนรายการรายจ่ายในเซลล์ด้านขวา และจำนวนเงินรายเดือนในเซลล์ C45 ถึง N47 จำนวนเงินรายปีจะคำนวณโดยอัตโนมัติในเซลล์ O45 ถึง O47 และเปอร์เซ็นต์ที่เพิ่มขึ้นในเซลล์ P45 ถึง P47 เส้นแบบประกายไฟจะอัปเดตโดยอัตโนมัติในเซลล์ Q45 คำแนะนำถัดไปอยู่ในเซลล์ A49","ค่าเทอมและค่าธรรมเนียม",{"$f":"SUM(C46:C47)","v":0},0,750,0,0,650,0,0,650,0,0,0,{"$f":"SUM(C45:N45)","v":{"v":2050,"d":"2,050"}},{"$f":"INDEX($C45:$O45,,SelectedPeriodColumn)/INDEX($C$72:$O$72,,SelectedPeriodColumn)","v":{"$error":"#VALUE!"}}]
[null,null,0,0,500,0,0,500,0,0,500,0,0,0,{"$f":"SUM(C46:N46)","v":{"v":1500,"d":"1,500"}},{"$f":"INDEX($C46:$O46,,SelectedPeriodColumn)/INDEX($C$72:$O$72,,SelectedPeriodColumn)","v":{"$error":"#VALUE!"}}]
[null,null,0,0,250,0,0,150,0,0,150,0,0,0,{"$f":"SUM(C47:N47)","v":550},{"$f":"INDEX($C47:$O47,,SelectedPeriodColumn)/INDEX($C$72:$O$72,,SelectedPeriodColumn)","v":{"$error":"#VALUE!"}}]
[]
["ป้อนหรือปรับเปลี่ยนรายการรายจ่ายในเซลล์ด้านขวา และจำนวนเงินรายเดือนในเซลล์ C49 ถึง N51 จำนวนเงินรายปีจะคำนวณโดยอัตโนมัติในเซลล์ O49 ถึง O51 และเปอร์เซ็นต์ที่เพิ่มขึ้นในเซลล์ P49 ถึง P51 เส้นแบบประกายไฟจะอัปเดตโดยอัตโนมัติในเซลล์ Q49 คำแนะนำถัดไปอยู่ในเซลล์ A53","หนังสือและอุปกรณ์ต่างๆ",{"$f":"SUM(C50:C51)","v":0},0,325,20,20,325,10,10,400,15,15,15,{"$f":"SUM(C49:N49)","v":{"v":1155,"d":"1,155"}},{"$f":"INDEX($C49:$O49,,SelectedPeriodColumn)/INDEX($C$72:$O$72,,SelectedPeriodColumn)","v":{"$error":"#VALUE!"}}]
[null,null,0,0,225,0,0,275,0,0,325,0,0,0,{"$f":"SUM(C50:N50)","v":825},{"$f":"INDEX($C50:$O50,,SelectedPeriodColumn)/INDEX($C$72:$O$72,,SelectedPeriodColumn)","v":{"$error":"#VALUE!"}}]
[null,null,0,0,100,20,20,50,10,10,75,15,15,15,{"$f":"SUM(C51:N51)","v":330},{"$f":"INDEX($C51:$O51,,SelectedPeriodColumn)/INDEX($C$72:$O$72,,SelectedPeriodColumn)","v":{"$error":"#VALUE!"}}]
[]
["ป้อนหรือปรับเปลี่ยนรายการรายจ่ายในเซลล์ด้านขวา และจำนวนเงินรายเดือนในเซลล์ C53 ถึง N57 จำนวนเงินรายปีจะคำนวณโดยอัตโนมัติในเซลล์ O53 ถึง O57 และเปอร์เซ็นต์ที่เพิ่มขึ้นในเซลล์ P53 ถึง P57 เส้นแบบประกายไฟจะอัปเดตโดยอัตโนมัติในเซลล์ Q53 คำแนะนำถัดไปอยู่ในเซลล์ A59","การเดินทาง",{"$f":"SUM(C54:C57)","v":224},174,174,219,174,174,274,219,174,174,224,269,{"$f":"SUM(C53:N53)","v":{"v":2473,"d":"2,473"}},{"$f":"INDEX($C53:$O53,,SelectedPeriodColumn)/INDEX($C$72:$O$72,,SelectedPeriodColumn)","v":{"$error":"#VALUE!"}}]
[null,null,30,30,30,75,30,30,30,75,30,30,30,75,{"$f":"SUM(C54:N54)","v":495},{"$f":"INDEX($C54:$O54,,SelectedPeriodColumn)/INDEX($C$72:$O$72,,SelectedPeriodColumn)","v":{"$error":"#VALUE!"}}]
[null,null,129,129,129,129,129,129,129,129,129,129,129,129,{"$f":"SUM(C55:N55)","v":{"v":1548,"d":"1,548"}},{"$f":"INDEX($C55:$O55,,SelectedPeriodColumn)/INDEX($C$72:$O$72,,SelectedPeriodColumn)","v":{"$error":"#VALUE!"}}]
[null,null,15,15,15,15,15,15,15,15,15,15,15,15,{"$f":"SUM(C56:N56)","v":180},{"$f":"INDEX($C56:$O56,,SelectedPeriodColumn)/INDEX($C$72:$O$72,,SelectedPeriodColumn)","v":{"$error":"#VALUE!"}}]
[null,null,50,0,0,0,0,0,100,0,0,0,50,50,{"$f":"SUM(C57:N57)","v":250},{"$f":"INDEX($C57:$O57,,SelectedPeriodColumn)/INDEX($C$72:$O$72,,SelectedPeriodColumn)","v":{"$error":"#VALUE!"}}]
[]
["ป้อนหรือปรับเปลี่ยนรายการรายจ่ายในเซลล์ด้านขวา และจำนวนเงินรายเดือนในเซลล์ C59 ถึง N65 จำนวนเงินรายปีจะคำนวณโดยอัตโนมัติในเซลล์ O59 ถึง O65 และเปอร์เซ็นต์ที่เพิ่มขึ้นในเซลล์ P59 ถึง P65 เส้นแบบประกายไฟจะอัปเดตโดยอัตโนมัติในเซลล์ Q59 คำแนะนำถัดไปอยู่ในเซลล์ A67","รายจ่ายตามดุลยพินิจ",{"$f":"SUM(C60:C65)","v":69},69,169,369,419,444,419,419,394,394,419,469,{"$f":"SUM(C59:N59)","v":{"v":4053,"d":"4,053"}},{"$f":"INDEX($C59:$O59,,SelectedPeriodColumn)/INDEX($C$72:$O$72,,SelectedPeriodColumn)","v":{"$error":"#VALUE!"}}]
[null,null,0,0,0,50,100,100,100,100,75,75,100,100,800,{"$f":"INDEX($C60:$O60,,SelectedPeriodColumn)/INDEX($C$72:$O$72,,SelectedPeriodColumn)","v":{"$error":"#VALUE!"}}]
[null,null,69,69,69,69,69,69,69,69,69,69,69,69,828,{"$f":"INDEX($C61:$O61,,SelectedPeriodColumn)/INDEX($C$72:$O$72,,SelectedPeriodColumn)","v":{"$error":"#VALUE!"}}]
[null,null,0,0,0,0,0,25,0,0,0,0,0,50,75,{"$f":"INDEX($C62:$O62,,SelectedPeriodColumn)/INDEX($C$72:$O$72,,SelectedPeriodColumn)","v":{"$error":"#VALUE!"}}]
[null,null,0,0,100,100,100,100,100,100,100,100,100,100,{"v":1000,"d":"1,000"},{"$f":"INDEX($C63:$O63,,SelectedPeriodColumn)/INDEX($C$72:$O$72,,SelectedPeriodColumn)","v":{"$error":"#VALUE!"}}]
[null,null,0,0,0,50,50,50,50,50,50,50,50,50,450,{"$f":"INDEX($C64:$O64,,SelectedPeriodColumn)/INDEX($C$72:$O$72,,SelectedPeriodColumn)","v":{"$error":"#VALUE!"}}]
[null,null,0,0,0,100,100,100,100,100,100,100,100,100,900,{"$f":"INDEX($C65:$O65,,SelectedPeriodColumn)/INDEX($C$72:$O$72,,SelectedPeriodColumn)","v":{"$error":"#VALUE!"}}]
[]
["ป้อนหรือปรับเปลี่ยนรายการรายจ่ายในเซลล์ด้านขวา และจำนวนเงินรายเดือนในเซลล์ C67 ถึง N70 จำนวนเงินรายปีจะคำนวณโดยอัตโนมัติในเซลล์ O67 ถึง O70 และเปอร์เซ็นต์ที่เพิ่มขึ้นในเซลล์ P67 ถึง P70 เส้นแบบประกายไฟจะอัปเดตโดยอัตโนมัติในเซลล์ Q67 คำแนะนำถัดไปอยู่ในเซลล์ A72","รายจ่ายอื่นๆ",{"$f":"SUM(C68:C70)","v":198},{"$f":"SUM(D68:D70)","v":198},250,253,243,238,233,258,263,268,268,268,{"$f":"SUM(C67:N67)","v":{"v":2938,"d":"2,938"}},{"$f":"INDEX($C67:$O67,,SelectedPeriodColumn)/INDEX($C$72:$O$72,,SelectedPeriodColumn)","v":{"$error":"#VALUE!"}}]
[null,null,123,123,123,123,123,123,123,123,123,123,123,123,{"$f":"SUM(C68:N68)","v":{"v":1476,"d":"1,476"}},{"$f":"INDEX($C68:$O68,,SelectedPeriodColumn)/INDEX($C$72:$O$72,,SelectedPeriodColumn)","v":{"$error":"#VALUE!"}}]
[null,null,0,0,52,55,45,40,35,60,65,70,70,70,{"$f":"SUM(C69:N69)","v":562},{"$f":"INDEX($C69:$O69,,SelectedPeriodColumn)/INDEX($C$72:$O$72,,SelectedPeriodColumn)","v":{"$error":"#VALUE!"}}]
[null,null,75,75,75,75,75,75,75,75,75,75,75,75,{"$f":"SUM(C70:N70)","v":900},{"$f":"INDEX($C70:$O70,,SelectedPeriodColumn)/INDEX($C$72:$O$72,,SelectedPeriodColumn)","v":{"$error":"#VALUE!"}}]
[]
["ป้ายกำกับรายจ่ายทั้งหมดอยู่ในเซลล์ด้านขวา รายจ่ายทั้งหมดสำหรับแต่ละเดือนจะถูกคำนวณในเซลล์ C72 ถึง N72 รายจ่ายรายปีใน O72 อัตโนมัติ และเปอร์เซ็นต์ที่เพิ่มขึ้นใน P72 เส้นแบบประกายไฟจะอัปเดตโดยอัตโนมัติในเซลล์ Q72","รายจ่ายทั้งหมด",{"$f":"SUM(C40,C45,C49,C53,C59,C67)","v":{"v":1056,"d":"1,056"}},{"v":1006,"d":"1,006"},{"v":2233,"d":"2,233"},{"v":1426,"d":"1,426"},{"v":1421,"d":"1,421"},{"v":2396,"d":"2,396"},{"v":1501,"d":"1,501"},{"v":1471,"d":"1,471"},{"v":2446,"d":"2,446"},{"v":1416,"d":"1,416"},{"v":1491,"d":"1,491"},{"v":1586,"d":"1,586"},{"$f":"SUM(C72:N72)","v":{"v":19449,"d":"19,449"}},{"$f":"INDEX($C72:$O72,,SelectedPeriodColumn)/INDEX($C$72:$O$72,,SelectedPeriodColumn)","v":{"$error":"#VALUE!"}}]

{"sheet":"chart_calcs","index":2,"n_rows":23,"n_cols":16,"rows_kept":23,"hidden":true}
["***เวิร์กชีตนี้ควรซ่อนอยู่***"]
[]
[{"$nulls":3},{"$f":"IFERROR(LOWER(TEXT(VALUE(SelectedPeriod&\" 1\"),\"mmmm\")),\"ปี\")","v":"ปี"}]
[]
[{"$nulls":3},"ชื่อแผนภูมิแบบไดนามิก"]
[{"$nulls":3},{"$f":"\"รายรับในเดือน\"&D3&\":\"","v":"รายรับในเดือนปี:"},null,{"$f":"TEXT(INDEX(งบประมาณรายเดือนระดับวิทยาลัย!$C$37:$O$37,,SelectedPeriodColumn),\"฿#,###\")","v":{"$error":"#VALUE!"}}]
[{"$nulls":3},{"$f":"\"รายจ่ายในเดือน\"&D3&\":\"","v":"รายจ่ายในเดือนปี:"},null,{"$f":"TEXT(INDEX(งบประมาณรายเดือนระดับวิทยาลัย!$C$72:$O$72,,SelectedPeriodColumn),\"฿#,###\")","v":{"$error":"#VALUE!"}}]
[{"$nulls":3},{"$f":"\"กระแสเงินสดของเดือน\"&D3&\":\"","v":"กระแสเงินสดของเดือนปี:"},{"$f":"INDEX(งบประมาณรายเดือนระดับวิทยาลัย!C28:O28,ScrollBarValue)","v":169},{"$f":"TEXT(E8,\"฿#,###\")","v":"฿169"}]
[]
[]
[]
[{"$nulls":3},{"$f":"LOWER(งบประมาณรายเดือนระดับวิทยาลัย!C27)","v":{"$error":"#VALUE!"}},{"$f":"LOWER(งบประมาณรายเดือนระดับวิทยาลัย!D27)","v":{"$error":"#VALUE!"}},{"$f":"LOWER(งบประมาณรายเดือนระดับวิทยาลัย!E27)","v":{"$error":"#VALUE!"}},{"$f":"LOWER(งบประมาณรายเดือนระดับวิทยาลัย!F27)","v":{"$error":"#VALUE!"}},{"$f":"LOWER(งบประมาณรายเดือนระดับวิทยาลัย!G27)","v":{"$error":"#VALUE!"}},{"$f":"LOWER(งบประมาณรายเดือนระดับวิทยาลัย!H27)","v":{"$error":"#VALUE!"}},{"$f":"LOWER(งบประมาณรายเดือนระดับวิทยาลัย!I27)","v":{"$error":"#VALUE!"}},{"$f":"LOWER(งบประมาณรายเดือนระดับวิทยาลัย!J27)","v":{"$error":"#VALUE!"}},{"$f":"LOWER(งบประมาณรายเดือนระดับวิทยาลัย!K27)","v":{"$error":"#VALUE!"}},{"$f":"LOWER(งบประมาณรายเดือนระดับวิทยาลัย!L27)","v":{"$error":"#VALUE!"}},{"$f":"LOWER(งบประมาณรายเดือนระดับวิทยาลัย!M27)","v":{"$error":"#VALUE!"}},{"$f":"LOWER(งบประมาณรายเดือนระดับวิทยาลัย!N27)","v":{"$error":"#VALUE!"}},{"$f":"LOWER(งบประมาณรายเดือนระดับวิทยาลัย!O27)","v":"ปี  "}]
[null,null,"ค่าแถบเลื่อน: ",1]
[null,null,"แผนภูมิกระแสเงินสด: ",{"$f":"IF(SelectedPeriod=งบประมาณรายเดือนระดับวิทยาลัย!C$31,IF(งบประมาณรายเดือนระดับวิทยาลัย!$C$28:$O$28>=0,งบประมาณรายเดือนระดับวิทยาลัย!$C$28:$O$28,NA()),NA())","v":{"$error":"#VALUE!"}},{"$f":"IF(SelectedPeriod=งบประมาณรายเดือนระดับวิทยาลัย!D$31,IF(งบประมาณรายเดือนระดับวิทยาลัย!$C$28:$O$28>=0,งบประมาณรายเดือนระดับวิทยาลัย!$C$28:$O$28,NA()),NA())","v":{"$error":"#VALUE!"}},{"$f":"IF(SelectedPeriod=งบประมาณรายเดือนระดับวิทยาลัย!E$31,IF(งบประมาณรายเดือนระดับวิทยาลัย!$C$28:$O$28>=0,งบประมาณรายเดือนระดับวิทยาลัย!$C$28:$O$28,NA()),NA())","v":{"$error":"#VALUE!"}},{"$f":"IF(SelectedPeriod=งบประมาณรายเดือนระดับวิทยาลัย!F$31,IF(งบประมาณรายเดือนระดับวิทยาลัย!$C$28:$O$28>=0,งบประมาณรายเดือนระดับวิทยาลัย!$C$28:$O$28,NA()),NA())","v":{"$error":"#VALUE!"}},{"$f":"IF(SelectedPeriod=งบประมาณรายเดือนระดับวิทยาลัย!G$31,IF(งบประมาณรายเดือนระดับวิทยาลัย!$C$28:$O$28>=0,งบประมาณรายเดือนระดับวิทยาลัย!$C$28:$O$28,NA()),NA())","v":{"$error":"#VALUE!"}},{"$f":"IF(SelectedPeriod=งบประมาณรายเดือนระดับวิทยาลัย!H$31,IF(งบประมาณรายเดือนระดับวิทยาลัย!$C$28:$O$28>=0,งบประมาณรายเดือนระดับวิทยาลัย!$C$28:$O$28,NA()),NA())","v":{"$error":"#VALUE!"}},{"$f":"IF(SelectedPeriod=งบประมาณรายเดือนระดับวิทยาลัย!I$31,IF(งบประมาณรายเดือนระดับวิทยาลัย!$C$28:$O$28>=0,งบประมาณรายเดือนระดับวิทยาลัย!$C$28:$O$28,NA()),NA())","v":{"$error":"#VALUE!"}},{"$f":"IF(SelectedPeriod=งบประมาณรายเดือนระดับวิทยาลัย!J$31,IF(งบประมาณรายเดือนระดับวิทยาลัย!$C$28:$O$28>=0,งบประมาณรายเดือนระดับวิทยาลัย!$C$28:$O$28,NA()),NA())","v":{"$error":"#VALUE!"}},{"$f":"IF(SelectedPeriod=งบประมาณรายเดือนระดับวิทยาลัย!K$31,IF(งบประมาณรายเดือนระดับวิทยาลัย!$C$28:$O$28>=0,งบประมาณรายเดือนระดับวิทยาลัย!$C$28:$O$28,NA()),NA())","v":{"$error":"#VALUE!"}},{"$f":"IF(SelectedPeriod=งบประมาณรายเดือนระดับวิทยาลัย!L$31,IF(งบประมาณรายเดือนระดับวิทยาลัย!$C$28:$O$28>=0,งบประมาณรายเดือนระดับวิทยาลัย!$C$28:$O$28,NA()),NA())","v":{"$error":"#VALUE!"}},{"$f":"IF(SelectedPeriod=งบประมาณรายเดือนระดับวิทยาลัย!M$31,IF(งบประมาณรายเดือนระดับวิทยาลัย!$C$28:$O$28>=0,งบประมาณรายเดือนระดับวิทยาลัย!$C$28:$O$28,NA()),NA())","v":{"$error":"#VALUE!"}},{"$f":"IF(SelectedPeriod=งบประมาณรายเดือนระดับวิทยาลัย!N$31,IF(งบประมาณรายเดือนระดับวิทยาลัย!$C$28:$O$28>=0,งบประมาณรายเดือนระดับวิทยาลัย!$C$28:$O$28,NA()),NA())","v":{"$error":"#VALUE!"}},{"$f":"IF(SelectedPeriod=งบประมาณรายเดือนระดับวิทยาลัย!O$31,IF(งบประมาณรายเดือนระดับวิทยาลัย!$C$28:$O$28>=0,งบประมาณรายเดือนระดับวิทยาลัย!$C$28:$O$28,NA()),NA())","v":{"$error":"#VALUE!"}}]
[null,null,"สะสม: ",{"$f":"IF(SelectedPeriod=งบประมาณรายเดือนระดับวิทยาลัย!C$31,IF(งบประมาณรายเดือนระดับวิทยาลัย!$C$28:$O$28<0,งบประมาณรายเดือนระดับวิทยาลัย!$C$28:$O$28,NA()),NA())","v":{"$error":"#VALUE!"}},{"$f":"IF(SelectedPeriod=งบประมาณรายเดือนระดับวิทยาลัย!D$31,IF(งบประมาณรายเดือนระดับวิทยาลัย!$C$28:$O$28<0,งบประมาณรายเดือนระดับวิทยาลัย!$C$28:$O$28,NA()),NA())","v":{"$error":"#VALUE!"}},{"$f":"IF(SelectedPeriod=งบประมาณรายเดือนระดับวิทยาลัย!E$31,IF(งบประมาณรายเดือนระดับวิทยาลัย!$C$28:$O$28<0,งบประมาณรายเดือนระดับวิทยาลัย!$C$28:$O$28,NA()),NA())","v":{"$error":"#VALUE!"}},{"$f":"IF(SelectedPeriod=งบประมาณรายเดือนระดับวิทยาลัย!F$31,IF(งบประมาณรายเดือนระดับวิทยาลัย!$C$28:$O$28<0,งบประมาณรายเดือนระดับวิทยาลัย!$C$28:$O$28,NA()),NA())","v":{"$error":"#VALUE!"}},{"$f":"IF(SelectedPeriod=งบประมาณรายเดือนระดับวิทยาลัย!G$31,IF(งบประมาณรายเดือนระดับวิทยาลัย!$C$28:$O$28<0,งบประมาณรายเดือนระดับวิทยาลัย!$C$28:$O$28,NA()),NA())","v":{"$error":"#VALUE!"}},{"$f":"IF(SelectedPeriod=งบประมาณรายเดือนระดับวิทยาลัย!H$31,IF(งบประมาณรายเดือนระดับวิทยาลัย!$C$28:$O$28<0,งบประมาณรายเดือนระดับวิทยาลัย!$C$28:$O$28,NA()),NA())","v":{"$error":"#VALUE!"}},{"$f":"IF(SelectedPeriod=งบประมาณรายเดือนระดับวิทยาลัย!I$31,IF(งบประมาณรายเดือนระดับวิทยาลัย!$C$28:$O$28<0,งบประมาณรายเดือนระดับวิทยาลัย!$C$28:$O$28,NA()),NA())","v":{"$error":"#VALUE!"}},{"$f":"IF(SelectedPeriod=งบประมาณรายเดือนระดับวิทยาลัย!J$31,IF(งบประมาณรายเดือนระดับวิทยาลัย!$C$28:$O$28<0,งบประมาณรายเดือนระดับวิทยาลัย!$C$28:$O$28,NA()),NA())","v":{"$error":"#VALUE!"}},{"$f":"IF(SelectedPeriod=งบประมาณรายเดือนระดับวิทยาลัย!K$31,IF(งบประมาณรายเดือนระดับวิทยาลัย!$C$28:$O$28<0,งบประมาณรายเดือนระดับวิทยาลัย!$C$28:$O$28,NA()),NA())","v":{"$error":"#VALUE!"}},{"$f":"IF(SelectedPeriod=งบประมาณรายเดือนระดับวิทยาลัย!L$31,IF(งบประมาณรายเดือนระดับวิทยาลัย!$C$28:$O$28<0,งบประมาณรายเดือนระดับวิทยาลัย!$C$28:$O$28,NA()),NA())","v":{"$error":"#VALUE!"}},{"$f":"IF(SelectedPeriod=งบประมาณรายเดือนระดับวิทยาลัย!M$31,IF(งบประมาณรายเดือนระดับวิทยาลัย!$C$28:$O$28<0,งบประมาณรายเดือนระดับวิทยาลัย!$C$28:$O$28,NA()),NA())","v":{"$error":"#VALUE!"}},{"$f":"IF(SelectedPeriod=งบประมาณรายเดือนระดับวิทยาลัย!N$31,IF(งบประมาณรายเดือนระดับวิทยาลัย!$C$28:$O$28<0,งบประมาณรายเดือนระดับวิทยาลัย!$C$28:$O$28,NA()),NA())","v":{"$error":"#VALUE!"}},{"$f":"IF(SelectedPeriod=งบประมาณรายเดือนระดับวิทยาลัย!O$31,IF(งบประมาณรายเดือนระดับวิทยาลัย!$C$28:$O$28<0,งบประมาณรายเดือนระดับวิทยาลัย!$C$28:$O$28,NA()),NA())","v":{"$error":"#VALUE!"}}]
[]
[]
[null,null,"ข้อมูลแผนภูมิรายรับ"]
[null,null,"เงินช่วยเหลือ (เงินทุน ทุนการศึกษา เงินกู้) ที่ชำระให้กับคุณ",{"$f":"งบประมาณรายเดือนระดับวิทยาลัย!P32","v":{"$error":"#VALUE!"}}]
[null,null,"ค่าจ้างหลังหักภาษี",{"$f":"งบประมาณรายเดือนระดับวิทยาลัย!P33","v":{"$error":"#VALUE!"}}]
[null,null,"เงินช่วยเหลือจากครอบครัว",{"$f":"งบประมาณรายเดือนระดับวิทยาลัย!P34","v":{"$error":"#VALUE!"}}]
[null,null,"ถอนจากเงินออม",{"$f":"งบประมาณรายเดือนระดับวิทยาลัย!P35","v":{"$error":"#VALUE!"}}]
[null,null,"อื่นๆ (เงินสงเคราะห์บุตร สาธารณูปการ ของขวัญ เป็นต้น)",{"$f":"งบประมาณรายเดือนระดับวิทยาลัย!P36","v":{"$error":"#VALUE!"}}]